bitfinex/quotes_ETHUSD_20230903
["timestamp","ask_amount","ask_price","bid_price","bid_amount"]
[1693767069924,24.97169404,1639.0,1638.9,1.16052864]
[1693767070126,27.97169404,1639.0,1638.9,0.10476908]
[1693767071006,27.97169404,1639.0,1638.9,1.16529074]
[1693767073409,30.97169404,1639.0,1638.9,1.16529074]
[1693767073607,34.46935526,1639.0,1638.9,1.16529074]
[1693767073935,35.63464526,1639.0,1638.9,1.16529074]
[1693767074124,35.63464526,1639.0,1638.9,1.16529764]
[1693767075435,32.63464526,1639.0,1638.9,1.16529764]
[1693767075600,35.63464526,1639.0,1638.9,1.16529764]
[1693767077331,35.63464526,1639.0,1638.9,1.90279098]
[1693767077537,35.63464526,1639.0,1638.9,0.65862509]
[1693767077830,35.63464526,1639.0,1638.7,0.73192997]
[1693767077831,41.19784646,1639.0,1638.7,0.73192997]
[1693767078035,36.56299242,1639.0,1638.9,0.95279138]
[1693767078236,38.11599242,1639.0,1638.7,0.73192997]
[1693767078546,3.48,1638.9,1638.8,0.94815456]
[1693767078703,23.33795,1638.9,1638.7,0.1]
[1693767079027,15.28589404,1638.8,1638.7,0.1]
[1693767079226,18.76589404,1638.8,1638.7,0.73192997]
[1693767079428,18.76589404,1638.8,1638.7,0.1]
[1693767080342,18.76589404,1638.8,1638.7,0.73192997]
[1693767080517,20.31889404,1638.8,1638.7,0.73192997]
[1693767081842,26.42091404,1638.8,1638.7,0.73192997]
[1693767082036,26.42091404,1638.8,1638.7,0.73635754]
[1693767085249,26.42091404,1638.8,1638.7,1.54847631]
[1693767085648,27.04562371,1638.8,1638.7,1.54847631]
[1693767085874,30.04562371,1638.8,1638.5,0.7324087]
[1693767086053,28.49262371,1638.8,1638.7,0.75914701]
[1693767086351,30.04562371,1638.8,1638.6,0.75682058]
[1693767086552,8.03756237,1638.7,1638.6,0.75682058]
[1693767086721,29.42658641,1638.7,1638.5,0.1]
[1693767086920,4.63485404,1638.6,1638.5,0.1]
[1693767087126,23.42316404,1638.6,1638.5,0.1]
[1693767087447,26.42316404,1638.6,1638.5,0.1]
[1693767087624,29.97617568,1638.6,1638.5,0.1]
[1693767087824,29.97617568,1638.6,1638.5,0.80224323]
[1693767089151,29.97617568,1638.6,1638.5,1.43465193]
[1693767089721,28.84471108,1638.6,1638.5,1.43465193]
[1693767090118,28.84471108,1638.6,1638.5,1.43857061]
[1693767091458,12.20702,1638.4,1638.2,3.42875554]
[1693767091627,4.553,1638.3,1638.2,1.26420246]
[1693767091829,15.06344005,1638.3,1638.2,1.26420246]
[1693767092158,13.76076,1638.3,1638.2,1.26799787]
[1693767092455,25.24110644,1638.3,1638.2,0.00379541]
[1693767092656,25.72110644,1638.3,1638.2,0.00379541]
[1693767093261,25.72110644,1638.3,1638.2,1.26799787]
[1693767093553,25.72110644,1638.3,1638.2,0.60398747]
[1693767093957,28.72110644,1638.3,1638.2,0.60398747]
[1693767094354,28.72110644,1638.3,1638.2,1.86818993]
[1693767097628,28.72110644,1638.3,1638.2,2.92908666]
[1693767098327,28.72110644,1638.3,1638.2,1.6648842]
[1693767098524,28.72110644,1638.3,1638.2,0.60019206]
[1693767099261,28.72110644,1638.3,1638.2,0.60384149]
[1693767099432,28.90566738,1638.3,1638.2,0.60384149]
[1693767100263,28.72110644,1638.3,1638.2,1.55440298]
[1693767102334,28.72110644,1638.3,1638.2,2.18816634]
[1693767102932,26.42649404,1638.3,1638.2,2.18816634]
[1693767103249,26.42649404,1638.3,1638.2,1.55440298]
[1693767104164,26.91848505,1638.3,1638.2,1.55440298]
[1693767104735,26.91848505,1638.3,1637.8,27.18476222]
[1693767104933,1.553,1637.9,1637.6,33.12334354]
[1693767105155,6.10483,1638.1,1638.0,0.71027738]
[1693767105334,10.73968404,1638.1,1638.0,0.71027738]
[1693767105532,14.21968404,1638.1,1638.0,0.71027738]
[1693767106062,14.21968404,1638.1,1638.0,0.71380475]
[1693767107163,20.32451404,1638.1,1638.0,0.71380475]
[1693767109181,14.21968404,1638.1,1638.0,0.71380475]
[1693767109885,12.45150199,1638.1,1638.0,0.71380475]
[1693767110051,11.97150199,1638.1,1638.0,0.71380475]
[1693767110578,18.07633199,1638.1,1638.0,0.71380475]
[1693767111081,11.97150199,1638.1,1638.0,0.71380475]
[1693767112777,11.97150199,1638.1,1638.0,1.22946862]
[1693767113301,3.0,1638.1,1638.0,2.27235752]
[1693767113602,9.10427,1638.2,1638.0,1.86398376]
[1693767113751,10.65727,1638.2,1638.0,1.86398376]
[1693767114851,10.65727,1638.2,1638.0,2.81574717]
[1693767115305,10.65727,1638.2,1638.0,1.86398376]
[1693767115600,10.65727,1638.2,1638.0,2.81574717]
[1693767116204,10.65727,1638.2,1638.0,1.86398376]
[1693767116553,10.65727,1638.2,1638.0,2.81574717]
[1693767117301,10.65727,1638.2,1638.0,1.86398376]
[1693767117503,10.65727,1638.2,1638.0,2.81574717]
[1693767118354,10.65727,1638.2,1638.0,1.86398376]
[1693767118654,10.65727,1638.2,1638.1,1.0609298]
[1693767119079,10.65727,1638.2,1638.1,1.06444802]
[1693767119255,10.65727,1638.2,1638.1,1.5813379]
[1693767120451,16.76154,1638.2,1638.1,1.5813379]
[1693767121400,10.65727,1638.2,1638.1,1.5813379]
[1693767123914,16.76154,1638.2,1638.1,1.5813379]
[1693767125948,16.76154,1638.2,1638.1,0.5204081]
[1693767127714,19.02064,1638.2,1638.1,0.5204081]
[1693767130421,22.10249404,1638.2,1638.1,0.5204081]
[1693767130575,22.58249404,1638.2,1638.1,0.77579182]
[1693767133702,31.95141839,1638.2,1638.1,0.77579182]
[1693767133902,32.85561959,1638.2,1638.1,0.77579182]
[1693767138906,31.95141839,1638.2,1638.1,0.77579182]
[1693767139491,22.10249404,1638.2,1638.1,0.77579182]
[1693767141018,28.20676404,1638.2,1638.1,0.77579182]
[1693767141323,28.68676404,1638.2,1638.1,0.77579182]
[1693767157391,26.42766404,1638.2,1638.1,0.77579182]
[1693767164923,26.37766404,1638.2,1638.1,0.77579182]
[1693767168475,1.44899945,1638.3,1638.1,0.77579182]
[1693767168681,2.03738921,1638.6,1638.1,0.77579182]
[1693767168902,1.553,1638.5,1638.1,0.77579182]
[1693767171683,1.553,1638.4,1638.1,0.77579182]
[1693767175716,4.553,1638.5,1638.1,0.77579182]
[1693767176145,1.553,1638.5,1638.1,0.77579182]
[1693767183832,11.23811,1638.6,1638.1,0.77579182]
[1693767183833,1.553,1638.4,1638.1,0.77579182]
[1693767191568,1.553,1638.5,1638.1,0.77579182]
[1693767195568,2.04394595,1638.5,1638.1,0.77579182]
[1693767197238,0.49094595,1638.5,1638.1,0.77579182]
[1693767197556,6.8744,1638.6,1638.1,0.77579182]
[1693767205900,12.9772,1638.6,1638.1,0.77579182]
[1693767206101,6.10356,1638.4,1638.1,0.77579182]
[1693767206317,1.553,1638.3,1638.1,0.77579182]
[1693767206465,16.08509,1638.3,1638.1,0.77579182]
[1693767206666,1.553,1638.2,1638.1,0.77579182]
[1693767215115,1.553,1638.2,1638.1,0.77579182]
[1693767217214,4.846,1638.3,1638.1,0.77579182]
[1693767217369,2.3243,1638.3,1638.1,0.77579182]
[1693767230928,3.17864155,1638.5,1638.1,0.77579182]
[1693767231135,3.0,1638.4,1638.1,0.77579182]
[1693767245086,2.1115,1638.3,1638.1,0.77579182]
[1693767250711,1.553,1638.2,1638.1,0.77579182]
[1693767254225,14.38398,1638.2,1638.1,0.77579182]
[1693767254429,11.27972,1638.2,1638.1,0.77579182]
[1693767254571,5.17546,1638.2,1638.1,0.77579182]
[1693767254766,11.27972,1638.2,1638.1,0.77579182]
[1693767255207,5.17546,1638.2,1638.1,0.77579182]
[1693767256167,11.27972,1638.2,1638.1,0.77579182]
[1693767269104,11.76879656,1638.2,1638.1,0.77579182]
[1693767273415,13.88829656,1638.2,1638.1,0.77579182]
[1693767277425,13.26583656,1638.2,1638.1,0.77579182]
[1693767277627,3.48907656,1638.2,1638.1,0.77579182]
[1693767281974,5.04207656,1638.2,1638.1,0.77579182]
[1693767285863,3.48907656,1638.2,1638.1,0.77579182]
[1693767299069,3.48907656,1638.2,1638.1,0.7722736]
[1693767299272,3.48907656,1638.2,1638.1,0.775586]
[1693767299571,3.48907656,1638.2,1638.1,0.87256645]
[1693767303362,5.75167656,1638.2,1638.1,0.87256645]
[1693767303548,7.30467656,1638.2,1638.1,0.87256645]
[1693767319231,30.90658426,1638.2,1638.1,0.87256645]
[1693767319376,32.88177542,1638.2,1638.1,0.87256645]
[1693767320356,33.83883653,1638.2,1638.1,0.87256645]
[1693767321533,36.83883653,1638.2,1638.1,0.87256645]
[1693767321878,36.84578083,1638.2,1638.1,0.87256645]
[1693767327279,35.34364537,1638.2,1638.1,0.87256645]
[1693767332165,35.34364537,1638.2,1638.1,0.86925405]
[1693767332693,1.553,1638.0,1637.7,30.51]
[1693767332894,6.10537,1637.9,1637.7,3.151]
[1693767333101,1.553,1637.8,1637.7,0.1]
[1693767336610,17.25481937,1638.2,1637.7,0.1]
[1693767336611,1.44613767,1638.2,1637.7,0.1]
[1693767336823,6.10402,1638.3,1637.7,0.1]
[1693767336824,1.553,1638.3,1637.7,10.23198793]
[1693767336963,1.553,1638.3,1637.8,1.63633268]
[1693767337715,1.553,1638.3,1637.8,1.02319879]
[1693767338304,1.553,1638.3,1637.8,1.63633268]
[1693767339297,2.04691346,1638.3,1637.8,1.63633268]
[1693767340688,2.04691346,1638.3,1637.9,0.74723858]
[1693767340891,0.49391346,1638.3,1637.9,0.74723858]
[1693767341089,4.553,1638.4,1637.9,0.74723858]
[1693767343424,10.65654,1638.4,1637.9,0.74723858]
[1693767347282,1.553,1638.3,1637.9,0.74723858]
[1693767357329,3.7325,1638.3,1637.9,0.74723858]
[1693767360921,4.21961165,1638.3,1637.9,0.74723858]
[1693767361122,9.10354,1638.4,1637.9,10.26609262]
[1693767361123,3.0,1638.4,1637.9,10.26609262]
[1693767361432,4.553,1638.5,1638.0,1.02660926]
[1693767361740,6.7236,1638.5,1638.0,1.02660926]
[1693767361946,6.7236,1638.5,1638.1,0.74599632]
[1693767368566,11.7236,1638.5,1638.1,0.74599632]
[1693767370777,11.7236,1638.5,1638.1,0.24718884]
[1693767377939,2.2994,1638.4,1638.1,0.24718884]
[1693767380276,2.2994,1638.4,1638.1,1.94328621]
[1693767380479,2.2994,1638.4,1638.2,1.06084091]
[1693767383285,1.553,1638.3,1638.2,1.06084091]
[1693767383487,1.553,1638.3,1638.1,0.24718884]
[1693767383656,6.3162,1638.3,1638.0,1.58814115]
[1693767384480,6.3162,1638.3,1638.1,1.06087644]
[1693767384681,2.2229,1638.2,1638.0,1.58814115]
[1693767384987,2.2229,1638.2,1638.1,1.06087805]
[1693767385288,3.7759,1638.2,1638.1,1.06087805]
[1693767385463,3.7759,1638.2,1638.1,0.25168776]
[1693767386197,3.7759,1638.2,1637.9,0.63525646]
[1693767386694,3.7759,1638.2,1637.9,1.69618795]
[1693767389379,3.7759,1638.2,1638.0,1.06093149]
[1693767389580,3.7759,1638.2,1637.9,1.0024836]
[1693767389813,3.7759,1638.2,1637.9,0.36722714]
[1693767390544,3.7759,1638.2,1637.8,1.65845525]
[1693767390714,3.7759,1638.2,1637.9,1.06093472]
[1693767393226,3.7759,1638.2,1637.8,1.02319879]
[1693767393931,3.7759,1638.2,1637.8,2.08413363]
[1693767394225,3.7759,1638.2,1637.8,1.02319879]
[1693767394397,2.5876,1638.1,1637.8,1.02319879]
[1693767395415,2.5876,1638.1,1637.9,1.06093593]
[1693767398426,2.2229,1638.2,1637.9,1.06093593]
[1693767398624,2.5611,1638.3,1637.9,1.69768504]
[1693767399131,4.8285,1638.3,1637.9,1.69768504]
[1693767400631,4.8285,1638.3,1638.0,0.25583646]
[1693767409874,1.553,1638.4,1638.0,3.3376905]
[1693767410059,1.553,1638.4,1638.1,0.33376905]
[1693767410262,3.7749,1638.4,1638.1,0.33376905]
[1693767413303,2.2219,1638.4,1638.1,0.33376905]
[1693767415643,2.2219,1638.4,1638.2,0.26331616]
[1693767418095,3.7749,1638.4,1638.2,0.26331616]
[1693767422393,2.2219,1638.4,1638.2,0.26331616]
[1693767424686,2.2219,1638.4,1638.1,0.33376905]
[1693767425181,2.2219,1638.4,1637.9,7.12724911]
[1693767425182,3.7749,1638.4,1637.9,0.63674911]
[1693767425352,4.184,1638.3,1637.9,1.69762013]
[1693767425546,4.184,1638.3,1637.8,3.25135014]
[1693767425547,6.4762,1638.3,1637.8,3.25135014]
[1693767425880,1.553,1638.2,1637.9,1.0609209]
[1693767426086,1.553,1638.2,1637.8,1.02319879]
[1693767426284,2.631,1638.1,1637.8,4.31242827]
[1693767426474,2.1001,1638.0,1637.9,1.49216986]
[1693767429791,2.631,1638.1,1637.9,1.06092703]
[1693767430111,1.553,1638.0,1637.7,0.1]
[1693767430251,2.1482,1637.9,1637.7,0.1]
[1693767430787,4.7339,1637.9,1637.7,0.1]
[1693767453430,6.3681,1638.2,1637.7,3.18185404]
[1693767453629,6.3681,1638.2,1637.8,1.3791138]
[1693767453830,6.3681,1638.2,1637.8,0.3181854]
[1693767454131,2.1468,1638.1,1637.8,0.3181854]
[1693767463228,2.1468,1638.1,1637.8,2.01600189]
[1693767463541,2.1468,1638.1,1637.9,1.06090408]
[1693767463943,2.1468,1638.1,1637.8,0.3181854]
[1693767464556,2.1468,1638.1,1637.9,1.06091098]
[1693767464951,2.1468,1638.1,1637.8,0.95509781]
[1693767465155,2.1468,1638.1,1637.9,1.06091218]
[1693767467347,2.1468,1638.1,1637.8,0.3181854]
[1693767467850,2.1468,1638.1,1637.9,1.0609236]
[1693767468055,2.1468,1638.1,1637.8,0.95509781]
[1693767468356,2.1468,1638.1,1637.9,1.06092388]
[1693767486704,2.1468,1638.1,1637.8,0.63691241]
[1693767486998,2.1468,1638.1,1637.8,2.17527391]
[1693767487302,2.1468,1638.1,1637.9,1.06094799]
[1693767499211,2.1468,1638.1,1637.8,2.06969454]
[1693767499377,2.1468,1638.1,1637.9,1.06095347]
[1693767501614,2.1468,1638.1,1637.8,0.63691241]
[1693767501786,2.1468,1638.1,1637.8,1.69786181]
[1693767505528,2.1468,1638.1,1637.8,2.40875274]
[1693767505825,2.1468,1638.1,1637.9,1.0609494]
[1693767506204,2.1468,1638.1,1637.8,0.63691241]
[1693767506419,2.1468,1638.1,1637.8,1.69786417]
[1693767513234,3.6998,1638.1,1637.8,1.69786417]
[1693767513435,3.6998,1638.1,1637.8,2.40875534]
[1693767513612,2.1263,1638.0,1637.9,1.06095176]
[1693767514214,2.1263,1638.0,1637.9,1.06095299]
[1693767515303,2.1263,1638.0,1637.8,1.69928281]
[1693767515635,4.905,1638.0,1637.9,1.06095299]
[1693767515840,4.905,1638.0,1637.8,1.69928281]
[1693767516543,4.905,1638.0,1637.8,2.65677755]
[1693767517138,4.905,1638.0,1637.9,1.06095299]
[1693767517311,4.905,1638.0,1637.8,2.65677755]
[1693767517518,4.905,1638.0,1637.9,1.06095299]
[1693767517823,4.905,1638.0,1637.8,2.65677755]
[1693767518128,4.905,1638.0,1637.9,1.06095299]
[1693767518636,4.905,1638.0,1637.8,2.65677755]
[1693767529547,7.1038,1638.0,1637.8,2.65677755]
[1693767529750,6.458,1638.0,1637.8,2.65677755]
[1693767531451,4.905,1638.0,1637.8,2.65677755]
[1693767538078,4.841971,1638.0,1637.8,2.65677755]
[1693767543290,6.394971,1638.0,1637.8,2.65677755]
[1693767544878,0.14159174,1637.9,1637.8,2.65677755]
[1693767545060,0.14159174,1637.9,1637.8,3.06012127]
[1693767545661,2.45039174,1637.9,1637.8,3.06012127]
[1693767554785,2.45039174,1637.9,1637.8,2.42179145]
[1693767555402,2.45039174,1637.9,1637.8,3.6984511]
[1693767555978,0.14159174,1637.9,1637.8,2.42179145]
[1693767556382,2.6291,1638.2,1637.8,2.42179145]
[1693767556579,2.6291,1638.2,1637.9,1.69876081]
[1693767557519,4.8257,1638.2,1637.9,1.69876081]
[1693767561524,4.8257,1638.2,1637.9,2.00472074]
[1693767561822,4.8257,1638.2,1638.0,1.06095299]
[1693767565605,0.14189227,1638.1,1638.0,1.06095299]
[1693767566227,4.8257,1638.2,1638.0,1.06095299]
[1693767572743,2.1966,1638.2,1638.0,1.06095299]
[1693767576242,2.1966,1638.2,1637.9,0.94337664]
[1693767576410,2.1966,1638.2,1638.0,1.06087198]
[1693767580557,0.14192948,1638.1,1638.0,1.06087198]
[1693767580732,0.14192948,1638.1,1637.9,0.30595993]
[1693767580933,2.1966,1638.2,1637.9,0.30595993]
[1693767584061,2.1966,1638.2,1637.8,0.63741671]
[1693767584226,2.6844,1638.1,1637.8,3.71927075]
[1693767584524,2.6844,1638.1,1637.9,1.0609171]
[1693767586158,2.6844,1638.1,1637.8,0.63741671]
[1693767586563,2.1003,1638.0,1637.8,1.06094584]
[1693767595551,0.14157621,1637.9,1637.8,1.06094584]
[1693767598088,0.14157621,1637.9,1637.7,0.1]
[1693767598379,0.14157621,1637.9,1637.7,0.94065924]
[1693767600590,2.71577621,1637.9,1637.7,0.94065924]
[1693767600897,2.71577621,1637.9,1637.7,0.1]
[1693767602803,0.14157621,1637.9,1637.8,1.06096987]
[1693767603183,0.14157621,1637.9,1637.7,1.79838658]
[1693767603375,0.14157621,1637.9,1637.8,4.14282391]
[1693767603605,0.14157621,1637.9,1637.8,4.78024062]
[1693767603905,0.14157621,1637.9,1637.8,5.49136053]
[1693767604875,0.14157621,1637.9,1637.8,2.40950649]
[1693767605068,0.14157621,1637.9,1637.8,1.69838658]
[1693767613716,4.9366,1638.1,1637.8,1.69838658]
[1693767613918,0.14749168,1637.9,1637.8,1.69838658]
[1693767614421,2.2447,1638.0,1637.8,1.69838658]
[1693767620634,0.14749168,1637.9,1637.7,1.69354178]
[1693767620785,0.14749168,1637.9,1637.8,1.06095434]
[1693767621527,0.14749168,1637.9,1637.8,1.64458936]
[1693767621690,0.14749168,1637.9,1637.8,1.06095434]
[1693767622588,0.14749168,1637.9,1637.8,1.69837105]
[1693767622787,0.14749168,1637.9,1637.8,1.06095434]
[1693767623820,0.14749168,1637.9,1637.8,1.69837105]
[1693767627911,1.70049168,1637.9,1637.8,1.06095434]
[1693767628216,2.09501085,1637.9,1637.7,0.1]
[1693767628422,4.68101085,1637.9,1637.7,0.1]
[1693767629216,6.78381085,1637.9,1637.7,0.1]
[1693767629633,1.553,1637.8,1637.7,0.1]
[1693767630032,3.6558,1637.8,1637.7,0.1]
[1693767630232,3.80226581,1637.8,1637.7,0.1]
[1693767632957,4.48054431,1637.8,1637.7,0.1]
[1693767635734,3.80226581,1637.8,1637.7,0.1]
[1693767636921,2.24926581,1637.8,1637.7,0.1]
[1693767637657,0.14646581,1637.8,1637.7,0.1]
[1693767640145,2.31106581,1637.8,1637.7,0.1]
[1693767642363,0.14646581,1637.8,1637.7,0.1]
[1693767644665,2.44306581,1637.8,1637.7,0.1]
[1693767646167,0.14646581,1637.8,1637.7,0.1]
[1693767646366,0.14646581,1637.8,1637.7,4.73485404]
[1693767646533,0.14646581,1637.8,1637.7,6.97049504]
[1693767646731,13.16285176,1638.6,1637.7,7.92662011]
[1693767646937,12.6562,1638.5,1637.8,1.69841392]
[1693767647149,1.553,1638.4,1637.8,1.69841392]
[1693767647345,1.69139787,1638.4,1637.8,4.78026796]
[1693767647676,1.69139787,1638.4,1637.9,1.53902401]
[1693767647854,0.13839787,1638.4,1637.9,3.55988084]
[1693767648276,3.13839787,1638.4,1637.9,3.55988084]
[1693767649330,0.13839787,1638.4,1637.9,3.55988084]
[1693767649535,0.13839787,1638.4,1638.0,0.35598808]
[1693767650652,2.6852,1638.3,1638.0,0.35598808]
[1693767657179,1.87095253,1638.8,1638.5,3.0]
[1693767657369,4.2462,1639.3,1638.6,3.08185404]
[1693767657572,4.2462,1639.3,1638.5,3.08185404]
[1693767657573,4.9692,1639.0,1638.5,3.08185404]
[1693767657888,4.9692,1639.0,1638.4,0.63663303]
[1693767658037,4.9692,1639.0,1638.4,4.77898792]
[1693767658238,4.9692,1639.0,1638.5,1.06050085]
[1693767658542,6.5222,1639.0,1638.5,1.06050085]
[1693767658742,7.17442,1639.0,1638.5,1.06050085]
[1693767660456,5.62142,1639.0,1638.5,1.06050085]
[1693767664085,5.62142,1639.0,1638.5,1.69713388]
[1693767664609,5.62142,1639.0,1638.6,1.06050085]
[1693767664782,5.62142,1639.0,1638.5,0.63663303]
[1693767664981,0.562142,1638.9,1638.5,1.6971353]
[1693767666500,5.62142,1639.0,1638.5,1.6971353]
[1693767667468,5.62142,1639.0,1638.5,2.65208485]
[1693767667718,5.62142,1639.0,1638.6,1.06050227]
[1693767668019,5.62142,1639.0,1638.5,1.59158258]
[1693767668167,5.62142,1639.0,1638.6,1.06050167]
[1693767668990,5.62142,1639.0,1638.6,1.6971347]
[1693767670215,4.9692,1639.0,1638.6,4.77898874]
[1693767670416,4.9692,1639.0,1638.7,1.06050167]
[1693767670771,4.33290234,1639.0,1638.7,1.06050167]
[1693767673409,4.33290234,1639.0,1638.7,1.6971347]
[1693767673410,3.20173859,1639.0,1638.7,1.6971347]
[1693767675278,3.20173859,1639.0,1638.7,2.27052853]
[1693767675479,3.20173859,1639.0,1638.8,1.06050167]
[1693767675693,1.553,1639.3,1638.8,4.14235571]
[1693767675885,2.2926,1639.2,1638.9,2.65208425]
[1693767676086,2.2926,1639.2,1639.0,1.6971347]
[1693767676286,2.2926,1639.2,1638.9,1.59158258]
[1693767676637,2.2926,1639.2,1639.0,1.69694925]
[1693767682602,2.2926,1639.2,1639.0,2.6518988]
[1693767682790,2.2926,1639.2,1639.1,1.06031622]
[1693767683192,2.2926,1639.2,1639.0,1.69694925]
[1693767683389,2.2926,1639.2,1639.1,1.06031622]
[1693767684186,2.2926,1639.2,1639.0,1.69694925]
[1693767684426,2.2926,1639.2,1639.1,1.06031622]
[1693767684646,2.2365,1639.3,1639.0,2.6518988]
[1693767684924,2.2365,1639.3,1639.1,1.06031622]
[1693767685486,2.2365,1639.3,1639.1,1.69694925]
[1693767685914,2.2365,1639.3,1639.2,1.06031622]
[1693767686115,2.2365,1639.3,1639.1,1.69694925]
[1693767686408,2.2365,1639.3,1639.2,1.06031622]
[1693767686826,2.2365,1639.3,1639.1,1.69694925]
[1693767687740,2.2365,1639.3,1639.2,1.06031622]
[1693767688140,2.2365,1639.3,1639.2,1.69694925]
[1693767688318,2.2365,1639.3,1639.2,1.06031622]
[1693767688522,2.2365,1639.3,1639.2,1.69694925]
[1693767690841,2.2365,1639.3,1639.2,0.63663303]
[1693767691034,2.2365,1639.3,1639.2,2.12871739]
[1693767691541,2.2365,1639.3,1639.2,3.08366694]
[1693767691742,2.2365,1639.3,1639.2,2.44703391]
[1693767692313,2.86767691,1639.5,1639.2,2.44703391]
[1693767692513,2.1796,1639.4,1639.3,1.6936497]
[1693767693419,1.04872064,1639.4,1639.3,2.64859925]
[1693767693625,1.04872064,1639.4,1639.3,1.6936497]
[1693767693951,1.18910412,1639.4,1639.3,1.6936497]
[1693767695547,1.18910412,1639.4,1639.3,0.63333348]
[1693767695721,1.18910412,1639.4,1639.3,1.6936497]
[1693767696631,1.18910412,1639.4,1639.3,2.64859925]
[1693767698423,2.74210412,1639.4,1639.3,1.6936497]
[1693767698819,2.74210412,1639.4,1639.3,0.63333348]
[1693767699951,2.74210412,1639.4,1639.3,1.6936497]
[1693767700521,2.74210412,1639.4,1639.3,2.64859925]
[1693767701525,2.74210412,1639.4,1639.3,2.01526577]
[1693767702255,9.40287222,1639.4,1639.3,2.01526577]
[1693767702472,23.55373158,1639.4,1639.3,1.69533394]
[1693767702677,5.25436158,1639.4,1639.3,1.69533394]
[1693767703046,5.25436158,1639.4,1639.3,0.63501772]
[1693767703674,5.25436158,1639.4,1639.2,2.65028349]
[1693767703874,4.69338348,1639.4,1639.3,1.06031622]
[1693767704063,4.69338348,1639.4,1639.3,0.63501772]
[1693767704578,4.69338348,1639.4,1639.2,1.69533394]
[1693767704579,10.79317348,1639.4,1639.2,1.69533394]
[1693767704753,4.69338348,1639.4,1639.3,1.06031622]
[1693767705077,4.69338348,1639.4,1639.2,0.63501772]
[1693767705458,3.0,1639.3,1639.2,0.63501772]
[1693767705664,3.0,1639.3,1639.2,1.06031622]
[1693767705862,0.14130335,1639.3,1639.2,1.06031622]
[1693767706174,4.553,1639.4,1639.1,1.58996727]
[1693767706376,6.6359,1639.4,1639.1,1.58996727]
[1693767706672,6.6359,1639.4,1639.2,1.06031622]
[1693767706875,15.06129169,1639.4,1639.1,0.63501772]
[1693767707382,1.553,1639.2,1639.1,0.63501772]
[1693767709056,1.553,1639.2,1639.0,2.65028892]
[1693767709252,1.553,1639.2,1639.1,1.06032165]
[1693767709978,1.553,1639.2,1639.0,1.69533937]
[1693767710280,1.553,1639.2,1639.0,5.00136826]
[1693767710482,1.553,1639.2,1639.1,1.06032165]
[1693767710850,1.553,1639.2,1639.0,0.63501772]
[1693767712647,1.553,1639.2,1638.9,0.63501772]
[1693767712850,1.553,1639.2,1638.9,1.69536295]
[1693767713071,3.6801,1639.2,1639.0,1.06034523]
[1693767713272,3.6801,1639.2,1638.9,0.63501772]
[1693767713565,3.6801,1639.2,1638.9,1.69536386]
[1693767713885,3.6801,1639.2,1639.0,1.06034614]
[1693767714057,3.6801,1639.2,1638.9,0.63501772]
[1693767714577,3.6801,1639.2,1638.9,1.06034712]
[1693767714778,3.6801,1639.2,1638.8,0.63501772]
[1693767715083,3.6801,1639.2,1638.8,4.77722006]
[1693767715283,3.6801,1639.2,1638.9,1.0603483]
[1693767715479,3.6801,1639.2,1638.9,1.53807031]
[1693767715674,3.6801,1639.2,1638.9,0.47772201]
[1693767719490,0.14076785,1639.1,1638.9,0.47772201]
[1693767719878,3.6801,1639.2,1638.9,0.47772201]
[1693767720061,3.6801,1639.2,1638.7,1.5913005]
[1693767720267,2.3546,1639.1,1638.7,3.08185404]
[1693767720456,2.3546,1639.1,1638.7,4.67315454]
[1693767725455,2.3546,1639.1,1638.7,3.08185404]
[1693767734119,2.3546,1639.1,1638.6,0.63501772]
[1693767734320,3.532,1639.0,1638.6,4.14227627]
[1693767734515,1.553,1638.9,1638.6,3.08185404]
[1693767734818,3.9882,1638.9,1638.6,3.08185404]
[1693767737517,2.4352,1638.9,1638.6,3.08185404]
[1693767737712,2.4352,1638.9,1638.6,3.72705127]
[1693767738824,3.9882,1638.9,1638.6,0.64519723]
[1693767738997,3.9882,1638.9,1638.4,85.13941772]
[1693767739322,3.9882,1638.9,1638.5,4.14238032]
[1693767739529,2.1338,1638.8,1638.5,3.08185404]
[1693767741739,2.1338,1638.8,1638.5,4.67262089]
[1693767741955,0.17868183,1638.7,1638.5,4.67261899]
[1693767742153,0.17868183,1638.7,1638.6,0.4672619]
[1693767742453,0.17868183,1638.7,1638.4,48.92501772]
[1693767742649,0.17868183,1638.7,1638.5,1.06051587]
[1693767742851,0.17868183,1638.7,1638.4,48.29]
[1693767743020,3.6868,1638.8,1638.4,48.29]
[1693767743217,2.396,1638.7,1638.4,48.29]
[1693767743423,0.1785146,1638.6,1638.5,4.829]
[1693767746628,2.1338,1638.8,1638.5,4.829]
[1693767746928,0.1647827,1638.6,1638.5,4.829]
[1693767747150,2.1338,1638.8,1638.5,4.829]
[1693767748760,2.1338,1638.8,1638.5,7.91085404]
[1693767748923,2.1338,1638.8,1638.6,0.7910854]
[1693767749337,1.553,1638.9,1638.6,0.7910854]
[1693767749558,1.9781,1638.9,1638.6,0.7910854]
[1693767749761,0.16493707,1638.7,1638.6,0.7910854]
[1693767749966,1.9781,1638.9,1638.6,0.7910854]
[1693767764681,0.16377027,1638.8,1638.6,0.7910854]
[1693767765141,1.9781,1638.9,1638.6,0.7910854]
[1693767768872,1.9781,1638.9,1638.5,7.91085404]
[1693767770198,1.9781,1638.9,1638.5,9.50161676]
[1693767770986,1.9781,1638.9,1638.5,6.41976272]
[1693767771210,1.9781,1638.9,1638.5,4.829]
[1693767775895,1.9781,1638.9,1638.5,6.41979682]
[1693767779683,0.16357534,1638.8,1638.5,6.41979682]
[1693767779921,0.16357534,1638.8,1638.6,0.64197968]
[1693767780125,2.2645,1638.8,1638.5,6.41979682]
[1693767780515,2.2645,1638.8,1638.5,6.41979745]
[1693767784330,2.2645,1638.8,1638.6,1.06053244]
[1693767786933,2.2645,1638.8,1638.5,6.41979745]
[1693767787332,2.2645,1638.8,1638.6,1.0605351]
[1693767793849,4.3893,1638.8,1638.6,1.0605351]
[1693767794458,0.16360151,1638.7,1638.6,1.0605351]
[1693767796277,0.16360151,1638.7,1638.6,1.87236973]
[1693767808047,0.16360151,1638.7,1638.6,4.95422377]
[1693767808458,1.553,1638.9,1638.6,4.95422377]
[1693767808667,1.553,1638.9,1638.7,1.0605351]
[1693767808980,3.5322,1638.9,1638.7,1.0605351]
[1693767809583,0.17509383,1638.8,1638.7,1.0605351]
[1693767809769,0.17509383,1638.8,1638.7,1.61975885]